bitfinex-derivatives/quotes_BTCF0:USTF0_20240905
["timestamp","ask_amount","ask_price","bid_price","bid_amount"]
[1725550792230,0.41320438,56195.0,56185.0,0.3608]
[1725550792414,0.41740459,56195.0,56185.0,0.3608]
[1725550792619,0.27,56193.0,56185.0,0.3608]
[1725550793323,0.088985,56186.0,56185.0,0.3608]
[1725550794425,0.088978,56191.0,56185.0,1.71876]
[1725550794723,0.088979,56190.0,56186.0,0.2191]
[1725550796120,0.09345219,56196.0,56186.0,0.2191]
[1725550796121,0.09345219,56196.0,56189.0,0.27]
[1725550796419,0.00026696,56196.0,56195.0,0.3608]
[1725550797011,0.00026696,56196.0,56195.0,0.449771]
[1725550797216,0.00026696,56196.0,56195.0,1.944411]
[1725550797915,0.00026696,56196.0,56195.0,1.945411]
[1725550798923,0.00026696,56196.0,56195.0,0.7226]
[1725550799131,0.08923596,56196.0,56195.0,0.7226]
[1725550799312,0.00026696,56196.0,56195.0,1.25644]
[1725550799626,0.08923596,56196.0,56195.0,1.25644]
[1725550799822,0.00026696,56196.0,56195.0,1.85644]
[1725550800022,0.00026696,56196.0,56195.0,1.945411]
[1725550800322,0.088944,56213.0,56195.0,1.945411]
[1725550800323,0.00407537,56213.0,56201.0,0.088961]
[1725550800528,0.088949,56209.0,56208.0,0.3608]
[1725550801231,0.00026696,56214.0,56208.0,0.3608]
[1725550801526,0.00026696,56214.0,56209.0,0.27]
[1725550801730,0.08920796,56214.0,56209.0,0.358948]
[1725550801926,0.088934,56219.0,56213.0,0.719742]
[1725550802120,0.088934,56219.0,56218.0,0.3608]
[1725550802321,0.177868,56219.0,56218.0,0.3608]
[1725550802625,1.49444,56219.0,56209.0,0.0040799]
[1725550802927,0.17793,56199.0,56198.0,0.3608]
[1725550803126,0.17993,56199.0,56198.0,0.3608]
[1725550803316,0.090965,56199.0,56198.0,0.3608]
[1725550804620,0.090965,56199.0,56198.0,0.3618]
[1725550805526,0.002,56199.0,56198.0,0.984606]
[1725550806030,0.000266,56204.0,56203.0,0.088958]
[1725550806226,0.002,56210.0,56209.0,0.088949]
[1725550806429,0.002,56210.0,56209.0,0.449749]
[1725550806728,0.002,56210.0,56209.0,0.678749]
[1725550807129,0.088945,56212.0,56209.0,0.678749]
[1725550807719,0.088939,56216.0,56210.0,0.088946]
[1725550807926,0.088939,56216.0,56215.0,0.3608]
[1725550808321,0.088939,56216.0,56209.0,0.5908]
[1725550808322,0.088939,56215.0,56209.0,0.5908]
[1725550808530,0.090947,56210.0,56209.0,0.5908]
[1725550808740,0.090947,56210.0,56209.0,0.95575546]
[1725550809832,0.179894,56210.0,56209.0,0.72675546]
[1725550810036,0.268841,56210.0,56209.0,0.001]
[1725550810222,0.268841,56210.0,56205.0,0.00026696]
[1725550810223,1.224667,56210.0,56205.0,9.6e-07]
[1725550810537,0.897662,56206.0,56205.0,9.6e-07]
[1725550810924,2.033422,56206.0,56205.0,9.6e-07]
[1725550811121,1.944468,56206.0,56205.0,9.6e-07]
[1725550811336,2.033422,56206.0,56205.0,9.6e-07]
[1725550811536,1.074468,56206.0,56205.0,9.6e-07]
[1725550811833,1.344468,56206.0,56205.0,9.6e-07]
[1725550812433,1.3486476,56206.0,56205.0,9.6e-07]
[1725550812626,0.8148876,56206.0,56205.0,9.6e-07]
[1725550812823,0.3651336,56206.0,56205.0,9.6e-07]
[1725550813137,0.4540876,56206.0,56205.0,9.6e-07]
[1725550813837,0.4540876,56206.0,56187.0,0.27]
[1725550813838,0.177958,56190.0,56189.0,0.3608]
[1725550814026,0.6308,56190.0,56175.0,0.589]
[1725550814225,0.6308,56190.0,56175.0,0.3608]
[1725550814226,0.091001,56176.0,56175.0,0.3608]
[1725550814426,0.089001,56176.0,56175.0,0.3608]
[1725550815727,0.179002,56176.0,56175.0,0.001]
[1725550816130,0.090001,56176.0,56175.0,0.001]
[1725550816535,0.089009,56171.0,56170.0,0.36106696]
[1725550816738,0.091009,56171.0,56170.0,0.36106696]
[1725550819236,0.016,56171.0,56170.0,0.36206696]
[1725550819443,0.105009,56171.0,56170.0,0.36206696]
[1725550819740,0.204027,56171.0,56170.0,0.00226696]
[1725550819930,0.190027,56171.0,56170.0,0.00126696]
[1725550820138,0.203027,56171.0,56170.0,0.00126696]
[1725550820342,0.114009,56171.0,56170.0,0.00126696]
[1725550820736,0.203027,56171.0,56170.0,0.00126696]
[1725550821236,0.292045,56171.0,56170.0,0.00126696]
[1725550821742,0.293045,56171.0,56170.0,0.00226696]
[1725550822334,0.279045,56171.0,56170.0,0.00126696]
[1725550822539,0.293045,56171.0,56170.0,0.00226696]
[1725550822945,0.827125,56171.0,56170.0,0.00226696]
[1725550825541,0.283045,56171.0,56170.0,0.00126696]
[1725550825737,0.293045,56171.0,56170.0,0.00226696]
[1725550827543,0.817125,56171.0,56170.0,0.00126696]
[1725550827743,0.982063,56171.0,56170.0,9.6e-07]
[1725550828045,0.089043,56155.0,56149.0,0.3608]
[1725550828238,1.519089,56171.0,56149.0,0.3608]
[1725550828239,0.180102,56150.0,56149.0,0.3608]
[1725550828439,0.180102,56150.0,56149.0,0.36498949]
[1725550828943,0.091051,56150.0,56149.0,0.36498949]
[1725550830033,0.186102,56150.0,56149.0,0.00518949]
[1725550830238,0.178118,56145.0,56144.0,0.00026696]
[1725550830446,0.448118,56145.0,56144.0,0.00026696]
[1725550830848,0.450118,56145.0,56144.0,0.00026696]
[1725550831539,0.538177,56145.0,56144.0,0.00026696]
[1725550831750,0.538177,56145.0,56144.0,9.6e-07]
[1725550831751,2.033297,56145.0,56144.0,9.6e-07]
[1725550831940,2.032297,56145.0,56144.0,9.6e-07]
[1725550832247,1.353238,56145.0,56144.0,9.6e-07]
[1725550832440,0.548918,56145.0,56144.0,9.6e-07]
[1725550832641,1.772297,56145.0,56144.0,9.6e-07]
[1725550832848,1.778297,56145.0,56144.0,9.6e-07]
[1725550833238,0.267201,56140.0,56139.0,2e-07]
[1725550833443,0.628001,56140.0,56139.0,2e-07]
[1725550833640,0.178176,56127.0,56115.0,0.3608]
[1725550833846,0.089105,56116.0,56115.0,0.3608]
[1725550834046,0.089111,56112.0,56111.0,0.3608]
[1725550834348,0.089111,56112.0,56105.0,0.2319]
[1725550834349,0.089121,56106.0,56105.0,0.2319]
[1725550834540,0.091121,56106.0,56105.0,0.2319]
[1725550834738,0.002,56106.0,56105.0,0.2319]
[1725550834940,0.091121,56106.0,56105.0,0.23592324]
[1725550836048,0.090121,56106.0,56105.0,0.23592324]
[1725550836346,0.360121,56106.0,56105.0,0.00402324]
[1725550836549,0.360121,56106.0,56103.0,0.3608]
[1725550836550,0.088124,56104.0,56103.0,0.3608]
[1725550836848,0.090124,56104.0,56103.0,0.36494467]
[1725550837049,0.088124,56104.0,56103.0,0.36494467]
[1725550837639,0.089129,56101.0,56100.0,0.0002672]
[1725550837952,0.361129,56101.0,56100.0,0.0002672]
[1725550838349,0.360129,56101.0,56100.0,0.0002672]
[1725550839055,0.371129,56101.0,56100.0,0.0012672]
[1725550839945,0.015,56101.0,56100.0,1.1360272]
[1725550840353,0.015,56101.0,56100.0,1.2251582]
[1725550840539,0.015,56101.0,56100.0,1.1360272]
[1725550841143,0.015,56101.0,56100.0,0.5360272]
[1725550841457,0.015,56101.0,56100.0,0.0012672]
[1725550841641,0.089129,56101.0,56100.0,0.0012672]
[1725550842159,0.27414068,56107.0,56100.0,0.0012672]
[1725550842344,0.089124,56104.0,56103.0,0.3608]
[1725550842945,0.00429717,56111.0,56105.0,0.089122]
[1725550843151,0.089116,56109.0,56108.0,0.3608]
[1725550843546,0.089119,56107.0,56106.0,0.2318]
[1725550843747,0.091119,56107.0,56106.0,0.2318]
[1725550844051,0.002,56107.0,56106.0,0.2318]
[1725550844953,0.091119,56107.0,56106.0,0.2318]
[1725550845655,0.002,56107.0,56106.0,0.321921]
[1725550845864,0.016,56107.0,56106.0,1.456601]
[1725550846152,0.0002672,56111.0,56110.0,0.089115]
[1725550846359,0.0002672,56111.0,56110.0,1.854555]
[1725550847563,0.0002672,56111.0,56110.0,1.584555]
[1725550847952,0.0893802,56111.0,56110.0,0.3608]
[1725550848652,0.0002672,56111.0,56110.0,0.449915]
[1725550848857,0.089087,56128.0,56112.0,0.089111]
[1725550849060,0.08908,56132.0,56124.0,0.3608]
[1725550849263,0.3608,56133.0,56124.0,0.3608]
[1725550849563,0.27,56132.0,56127.0,0.3608]
[1725550849866,0.089091,56125.0,56124.0,0.3610672]
[1725550850052,0.091091,56125.0,56124.0,0.3610672]
[1725550850444,0.002,56125.0,56124.0,0.3610672]
[1725550850649,0.002,56125.0,56124.0,0.4501592]
[1725550850848,0.002,56125.0,56124.0,0.3610672]
[1725550851253,0.091091,56125.0,56124.0,0.3610672]
[1725550851454,0.091091,56125.0,56124.0,0.36621127]
[1725550852257,0.105091,56125.0,56124.0,0.36621127]
[1725550852462,0.016,56125.0,56124.0,1.58982327]
[1725550852658,0.016,56125.0,56124.0,1.59967188]
[1725550852659,0.022,56125.0,56124.0,1.59967188]
[1725550853347,0.016,56125.0,56124.0,1.59867188]
[1725550853553,0.022,56125.0,56124.0,1.59967188]
[1725550854753,0.022,56125.0,56124.0,1.59867188]
[1725550854949,0.111091,56125.0,56124.0,0.37505988]
[1725550855155,0.111091,56125.0,56124.0,0.36621127]
[1725550855851,0.200182,56125.0,56124.0,0.00541127]
[1725550856058,0.470182,56125.0,56124.0,0.0012672]
[1725550856655,1.693793,56125.0,56124.0,2e-07]
[1725550856851,0.267288,56122.0,56121.0,0.3608]
[1725550857051,0.269288,56122.0,56121.0,0.3608]
[1725550857559,0.180192,56122.0,56121.0,0.3608]
[1725550858664,0.091096,56122.0,56121.0,0.3608]
[1725550858863,0.104096,56122.0,56121.0,0.3618]
[1725550859269,0.193192,56122.0,56121.0,0.3618]
[1725550859473,0.198192,56122.0,56121.0,0.002]
[1725550860464,0.02,56122.0,56121.0,0.002]
[1725550860963,0.109096,56122.0,56121.0,0.002]
[1725550861760,0.648088,56122.0,56121.0,0.002]
[1725550862058,1.004456,56122.0,56116.0,0.0002672]
[1725550862259,0.267312,56117.0,56116.0,0.0002672]
[1725550862455,0.180208,56117.0,56116.0,0.0002672]
[1725550863363,0.180208,56117.0,56116.0,0.0012672]
[1725550863563,0.091104,56117.0,56116.0,0.0012672]
[1725550864068,0.180208,56117.0,56116.0,0.0012672]
[1725550864261,0.541008,56117.0,56116.0,0.0012672]
[1725550864672,0.55905421,56117.0,56116.0,0.0022672]
[1725550864870,0.64815821,56117.0,56116.0,0.0022672]
[1725550865069,0.65515821,56117.0,56116.0,0.0022672]
[1725550865963,0.17823,56110.0,56108.0,0.41398915]
[1725550866161,0.178236,56108.0,56107.0,0.05318915]
[1725550866369,0.089123,56105.0,56102.0,0.05318915]
[1725550866581,0.089132,56099.0,56098.0,0.05322993]
[1725550866765,0.091133,56099.0,56098.0,0.089133]
[1725550867069,0.091133,56099.0,56096.0,0.07520231]
[1725550867070,0.27,56099.0,56096.0,0.07520231]
[1725550867274,0.089132,56100.0,56098.0,0.089134]
[1725550867572,0.089135,56097.0,56096.0,0.07103256]
[1725550867768,0.089137,56096.0,56095.0,0.43183256]
[1725550867965,0.091137,56096.0,56095.0,0.43183256]
[1725550868172,0.089137,56096.0,56095.0,0.43591583]
[1725550868375,0.088137,56096.0,56095.0,0.36488327]
[1725550868570,0.088137,56096.0,56095.0,0.43591583]
[1725550868971,0.088137,56096.0,56095.0,0.36488327]
[1725550869169,0.102137,56096.0,56095.0,0.36588327]
[1725550869370,0.372137,56096.0,56095.0,0.36588327]
[1725550869571,0.375137,56096.0,56095.0,0.36588327]
[1725550869766,0.375137,56096.0,56095.0,0.05421691]
[1725550869767,0.553411,56096.0,56095.0,0.05421691]
[1725550869973,0.553411,56096.0,56095.0,0.001]
[1725550870670,0.55747296,56096.0,56095.0,0.001]
[1725550872674,0.55747296,56096.0,56093.0,0.0002672]
[1725550872675,0.26742,56094.0,56093.0,0.0002672]
[1725550872871,0.089161,56081.0,56080.0,0.05321691]
[1725550873073,0.272,56081.0,56080.0,0.3608]
[1725550873271,0.450322,56081.0,56080.0,0.3608]
[1725550873475,0.450322,56081.0,56080.0,0.36501716]
[1725550874070,0.091161,56081.0,56080.0,0.45417916]
[1725550874265,0.450322,56081.0,56080.0,0.36501716]
[1725550874975,0.084169,56076.0,56075.0,0.36097884]
[1725550875178,0.445338,56076.0,56075.0,0.00017884]
[1725550875772,0.272,56076.0,56075.0,0.00017884]
[1725550875980,0.002,56076.0,56075.0,0.36097884]
[1725550876779,0.091169,56076.0,56075.0,0.36097884]
[1725550878077,0.093169,56076.0,56075.0,0.36097884]
[1725550878276,0.104169,56076.0,56075.0,0.36097884]
[1725550878884,0.015,56076.0,56075.0,0.45014884]
[1725550879078,0.104169,56076.0,56075.0,0.36097884]
[1725550879388,0.104169,56076.0,56075.0,0.45014884]
[1725550879389,0.015,56076.0,56075.0,0.45014884]
[1725550879684,0.089158,56083.0,56081.0,0.08916]
[1725550879873,0.089154,56085.0,56082.0,0.3608]
[1725550880074,0.00026743,56086.0,56085.0,0.089154]
[1725550882169,0.01426743,56086.0,56085.0,0.089154]
[1725550882783,0.089136,56097.0,56093.0,0.089141]
[1725550882981,0.089136,56097.0,56094.0,0.5949]
[1725550883179,0.089138,56096.0,56094.0,0.5949]
[1725550883381,0.36317496,56100.0,56095.0,0.089137]
[1725550883577,0.089133,56099.0,56095.0,0.089137]
[1725550884581,0.089138,56096.0,56094.0,0.5949]
[1725550884773,0.002,56095.0,56094.0,0.68404]
[1725550884974,0.002,56095.0,56094.0,0.69297111]
[1725550885175,0.002,56095.0,56094.0,2.18857111]
[1725550885574,0.002,56095.0,56094.0,1.58857111]
[1725550885978,0.016,56095.0,56094.0,1.58957111]
[1725550886180,0.016,56095.0,56094.0,1.58064]
[1725550886577,0.089143,56092.0,56091.0,0.00026743]
[1725550886782,0.269429,56092.0,56091.0,4.3e-07]
[1725550887085,0.630229,56092.0,56091.0,4.3e-07]
[1725550887282,1.765069,56092.0,56091.0,4.3e-07]
[1725550887981,1.764069,56092.0,56091.0,4.3e-07]
[1725550888181,0.089169,56076.0,56075.0,0.3608]
[1725550888382,0.002,56076.0,56072.0,0.2354]
[1725550888680,0.091173,56073.0,56072.0,0.2354]
[1725550888881,0.089173,56073.0,56072.0,0.2354]
[1725550889285,0.089173,56073.0,56072.0,0.23956159]
[1725550889486,0.359173,56073.0,56072.0,0.00416159]
[1725550889674,0.089181,56068.0,56067.0,0.00017884]
[1725550889880,0.450362,56068.0,56067.0,0.00017884]
[1725550890190,0.361181,56068.0,56067.0,0.00017884]
[1725550890577,0.359181,56068.0,56067.0,0.00017884]
[1725550891380,0.358181,56068.0,56067.0,0.00017884]
[1725550891581,0.363181,56068.0,56067.0,0.00017884]
[1725550891885,0.007,56068.0,56067.0,0.00017884]
[1725550892094,0.096181,56068.0,56067.0,0.00017884]
[1725550892576,0.002,56076.0,56070.0,0.27]
[1725550892778,0.002,56076.0,56067.0,1.18941771]
[1725550892779,0.089175,56072.0,56071.0,0.4567]
[1725550892981,0.09117,56076.0,56071.0,0.4567]
[1725550893290,0.089171,56075.0,56073.0,0.3608]
[1725550893478,0.089171,56075.0,56074.0,0.3608]
[1725550894184,0.024,56076.0,56074.0,1.4958]
[1725550894383,0.024,56076.0,56075.0,0.535]
[1725550894577,0.022,56076.0,56075.0,0.535]
[1725550894777,0.014,56076.0,56075.0,0.535]
[1725550895382,0.014,56076.0,56075.0,1.135]
[1725550895584,0.089169,56076.0,56075.0,1.135]
[1725550896191,0.08917,56075.0,56074.0,0.3618]
[1725550896389,0.09117,56075.0,56074.0,0.3618]
[1725550896991,0.002,56075.0,56074.0,1.585972]
[1725550897284,0.014,56076.0,56074.0,1.4968]
[1725550897479,1e-08,56078.0,56077.0,0.359167]
[1725550897885,1e-08,56078.0,56077.0,1.494127]
[1725550899285,1e-08,56078.0,56077.0,1.58298499]
[1725550899483,1e-08,56078.0,56077.0,1.71881108]
[1725550899999,0.00400001,56078.0,56077.0,1.71881108]
[1725550900185,0.00400001,56078.0,56077.0,1.62995309]
[1725550900493,0.00400001,56078.0,56077.0,1.71912009]
[1725550900694,0.089147,56090.0,56077.0,1.71912009]
[1725550900695,0.089142,56093.0,56078.0,0.089165]
[1725550900884,0.089142,56093.0,56090.0,0.3608]
[1725550901390,0.089142,56093.0,56090.0,0.5818]
[1725550902788,0.096142,56093.0,56090.0,0.5828]
[1725550903093,0.007,56093.0,56092.0,0.089143]
[1725550904092,0.013,56093.0,56092.0,0.089143]
[1725550904291,0.006,56093.0,56092.0,0.089143]
[1725550904485,0.012,56093.0,56092.0,0.089143]
[1725550904688,0.018,56093.0,56092.0,0.090143]
[1725550905190,0.006,56093.0,56092.0,0.624983]
[1725550905490,0.018,56093.0,56092.0,0.625983]
[1725550906393,0.107142,56093.0,56092.0,0.002]
[1725550906693,0.555426,56093.0,56092.0,0.002]
[1725550908102,0.555426,56093.0,56080.0,0.41402904]
[1725550908103,0.089151,56087.0,56080.0,0.41402904]
[1725550908288,0.089151,56087.0,56081.0,0.32322904]
[1725550908289,0.178302,56087.0,56081.0,0.32322904]
[1725550908594,0.091151,56087.0,56085.0,0.27]
[1725550908895,0.091151,56087.0,56086.0,0.08942043]
[1725550909296,0.091151,56087.0,56086.0,0.00026743]
[1725550909796,0.091151,56087.0,56086.0,0.00126743]
[1725550909797,0.096151,56087.0,56086.0,0.00126743]
[1725550910686,0.274453,56087.0,56086.0,0.00126743]
[1725550910883,0.269453,56087.0,56086.0,0.00126743]
[1725550911092,0.637253,56087.0,56086.0,0.00226743]
[1725550911283,0.637253,56087.0,56069.0,0.05322904]
[1725550911284,1.50468,56087.0,56069.0,0.05322904]
[1725550911493,0.091179,56070.0,56068.0,0.05322904]
[1725550911685,0.091179,56070.0,56068.0,0.14241004]
[1725550911882,0.091179,56070.0,56068.0,0.089181]
[1725550912083,0.091179,56070.0,56067.0,0.5995]
[1725550912294,0.002,56070.0,56069.0,0.32323169]
[1725550912493,0.00026743,56074.0,56069.0,0.27]
[1725550912699,1e-08,56074.0,56073.0,0.719973]
[1725550912883,1e-08,56074.0,56073.0,1.39094505]
[1725550913090,1e-08,56074.0,56073.0,1.944146]
[1725550913590,1e-08,56074.0,56073.0,1.97201908]
[1725550913794,0.089151,56087.0,56082.0,0.089159]
[1725550913996,0.089153,56086.0,56082.0,0.089159]
[1725550915285,0.094153,56086.0,56083.0,0.2308]
[1725550915486,0.094153,56086.0,56083.0,0.319957]
[1725550915890,0.094153,56086.0,56083.0,0.2308]
[1725550918591,0.014,56083.0,56082.0,0.00614332]
[1725550919190,0.014,56083.0,56082.0,0.05936426]
[1725550919596,0.019,56083.0,56082.0,0.05936426]
[1725550919791,0.019,56083.0,56082.0,0.09530232]
[1725550920196,0.019,56083.0,56082.0,1.23022232]
[1725550920598,0.019,56083.0,56082.0,1.30118357]
[1725550920788,0.014,56083.0,56082.0,1.22922232]
[1725550920992,0.019,56083.0,56082.0,1.23022232]
[1725550921490,0.02,56083.0,56082.0,1.23022232]
[1725550922289,0.02,56083.0,56082.0,0.00614332]
[1725550922499,0.099158,56083.0,56082.0,0.00514332]
[1725550922702,0.099158,56083.0,56082.0,0.00414332]
[1725550922703,0.094158,56083.0,56082.0,0.00414332]
[1725550922897,0.01,56083.0,56082.0,0.001]
[1725550923494,0.099158,56083.0,56082.0,0.001]
[1725550923689,0.01,56083.0,56082.0,0.090159]
[1725550924199,0.101158,56083.0,56082.0,0.001]
[1725550924796,0.012,56083.0,56082.0,0.001]
[1725550925195,0.012,56083.0,56082.0,0.090159]
[1725550925495,0.018,56083.0,56082.0,0.091159]
[1725550925798,0.018,56083.0,56082.0,1.226079]
[1725550926996,0.08941543,56090.0,56089.0,0.089148]
[1725550926997,0.00026743,56090.0,56089.0,0.089148]
[1725550927197,0.00026743,56090.0,56089.0,0.719948]
[1725550927385,0.089129,56101.0,56089.0,0.719948]
[1725550927386,0.05240438,56103.0,56089.0,2.12644]
[1725550927590,0.04446438,56107.0,56101.0,0.68415682]
[1725550927792,0.08912,56107.0,56102.0,0.05335682]
[1725550927987,0.2491,56115.0,56106.0,0.3608]
[1725550928193,0.2491,56115.0,56111.0,0.3608]
[1725550928397,0.089111,56112.0,56111.0,0.3608]
[1725550929796,0.089114,56111.0,56106.0,0.00026743]
[1725550929997,0.267357,56107.0,56106.0,0.00026743]
[1725550930200,0.630157,56107.0,56106.0,1e-08]
[1725550930401,0.089137,56096.0,56095.0,0.05334631]
[1725550930602,0.089145,56091.0,56090.0,0.05334631]
[1725550930907,0.089146,56090.0,56089.0,0.00403178]
[1725550931197,0.002,56090.0,56088.0,0.05334631]
[1725550931401,0.002,56089.0,56088.0,0.05334631]
[1725550931607,0.002,56089.0,56088.0,0.08915]
[1725550932002,1e-08,56096.0,56094.0,0.08914]
[1725550932215,0.003,56111.0,56096.0,0.27]
[1725550932388,0.33966344,56122.0,56110.0,0.3608]
[1725550932389,0.27,56122.0,56110.0,0.3608]
[1725550932589,0.27407462,56122.0,56116.0,0.3608]
[1725550933303,0.00026743,56125.0,56118.0,0.359101]
[1725550933606,0.00026743,56125.0,56118.0,0.27]
[1725550933793,0.00026743,56125.0,56124.0,0.3608]
[1725550935904,0.00026743,56125.0,56124.0,0.3618]
[1725550935905,0.00326743,56125.0,56124.0,0.3618]
[1725550936110,0.089061,56144.0,56134.0,0.089076]
[1725550936309,0.449859,56145.0,56139.0,0.27]
[1725550936499,0.089059,56145.0,56141.0,0.3608]
[1725550936999,0.2414,56149.0,56141.0,0.3608]
[1725550937310,0.00026719,56149.0,56147.0,0.3608]
[1725550938800,0.00026719,56149.0,56147.0,0.3618]
[1725550939004,0.00026719,56149.0,56147.0,0.3628]
[1725550939199,0.089054,56148.0,56147.0,0.3628]
[1725550939613,0.00026719,56149.0,56147.0,0.3628]
[1725550940809,0.089054,56148.0,56147.0,0.3628]
[1725550941608,0.089054,56148.0,56147.0,0.36690783]
[1725550941810,0.00026719,56149.0,56147.0,0.63690783]
[1725550942013,0.00026719,56149.0,56148.0,0.089054]
[1725550942316,0.00026719,56149.0,56147.0,0.63846783]
[1725550942606,0.002,56148.0,56147.0,0.63690783]
[1725550943806,0.002,56148.0,56147.0,0.3628]
[1725550943807,0.180108,56148.0,56147.0,0.3628]
[1725550944009,0.091054,56148.0,56147.0,0.3628]
[1725550945003,0.091054,56148.0,56147.0,0.3618]
[1725550945608,0.091054,56148.0,56147.0,0.3628]
[1725550946910,0.002,56148.0,56147.0,0.3628]
[1725550947301,0.002,56148.0,56147.0,0.451856]
[1725550947805,0.089034,56161.0,56147.0,0.9628]
[1725550948001,0.089028,56165.0,56158.0,0.3608]
[1725550948207,0.089032,56162.0,56161.0,0.27]
[1725550948813,0.089037,56159.0,56158.0,0.3608]
[1725550949007,0.091037,56159.0,56158.0,0.3608]
[1725550949211,0.091037,56159.0,56158.0,0.3618]
[1725550950013,0.002,56159.0,56158.0,0.3618]
[1725550950206,0.091037,56159.0,56158.0,0.3618]
[1725550950822,0.091037,56159.0,56158.0,0.36583224]
[1725550951312,0.091037,56159.0,56158.0,0.36483224]
[1725550951519,0.091037,56159.0,56158.0,0.00403224]
[1725550951520,0.180074,56159.0,56158.0,0.00403224]
[1725550951708,0.180074,56159.0,56156.0,0.00026719]
[1725550951709,0.17808,56157.0,56156.0,0.00026719]
[1725550951908,0.53912,56157.0,56156.0,0.00026719]
[1725550952107,1.67336,56157.0,56156.0,1.9e-07]
[1725550952723,1.58432,56157.0,56156.0,1.9e-07]
[1725550952906,0.98432,56157.0,56156.0,0.00100019]
[1725550953213,1.58432,56157.0,56156.0,0.00100019]
[1725550953422,1.58432,56157.0,56156.0,0.00200019]
[1725550953812,1.67336,56157.0,56156.0,0.00200019]
[1725550954621,1.67336,56157.0,56156.0,1.9e-07]
[1725550955014,1.07336,56157.0,56156.0,1.9e-07]
[1725550955315,0.45008,56157.0,56156.0,1.9e-07]
[1725550955511,0.53912,56157.0,56156.0,1.9e-07]
[1725550955705,1.07336,56157.0,56156.0,1.9e-07]
[1725550955910,1.67336,56157.0,56156.0,1.9e-07]
[1725550956520,1.07336,56157.0,56156.0,1.9e-07]
[1725550956817,1.67336,56157.0,56156.0,1.9e-07]
[1725550957208,1.07336,56157.0,56156.0,1.9e-07]
[1725550957410,0.53912,56157.0,56156.0,1.9e-07]
[1725550957609,1.07336,56157.0,56156.0,1.9e-07]
[1725550957808,0.53912,56157.0,56156.0,1.9e-07]
[1725550958013,1.07336,56157.0,56156.0,1.9e-07]
[1725550958418,1.67336,56157.0,56156.0,1.9e-07]
[1725550960016,1.07336,56157.0,56156.0,1.9e-07]
[1725550960413,1.67336,56157.0,56156.0,1.9e-07]
[1725550961013,1.67336,56157.0,56137.0,0.00913034]
[1725550961014,0.26721,56138.0,56137.0,0.00913034]
[1725550961215,0.178166,56130.0,56129.0,0.3608]
[1725550961521,0.180166,56130.0,56129.0,0.3608]
[1725550961728,0.089089,56126.0,56125.0,0.00401693]
[1725550962023,0.091089,56126.0,56125.0,0.089091]
[1725550962215,0.002,56126.0,56125.0,0.359091]
[1725550962525,0.002,56126.0,56125.0,1.582702]
[1725550962715,0.002,56126.0,56125.0,1.65372503]
[1725550962915,0.002,56126.0,56125.0,1.582702]
[1725550963118,0.002,56126.0,56125.0,1.493611]
[1725550963322,0.00026719,56131.0,56130.0,0.089083]
[1725550963510,0.00026719,56131.0,56130.0,0.719883]
[1725550963924,0.00026719,56131.0,56130.0,0.8709]
[1725550964315,0.35934819,56131.0,56130.0,0.05322593]
[1725550964622,0.178166,56130.0,56129.0,0.05322593]
[1725550964824,0.089083,56130.0,56129.0,0.05322739]
[1725550965016,0.00026719,56131.0,56128.0,0.27]
[1725550965017,0.089084,56129.0,56128.0,0.27]
[1725550965216,0.091084,56129.0,56128.0,0.27]
[1725550965522,0.091084,56129.0,56128.0,0.3409679]
[1725550965817,0.089086,56128.0,56127.0,0.4317679]
[1725550966024,0.091086,56128.0,56127.0,0.3608]
[1725550967028,0.282258,56128.0,56127.0,0.41503798]
[1725550967319,0.193172,56128.0,56127.0,0.3618]
[1725550968521,0.205172,56128.0,56127.0,0.3628]
[1725550968819,0.294258,56128.0,56127.0,0.3628]
[1725550969124,0.205172,56128.0,56127.0,0.3628]
[1725550969323,0.828738,56128.0,56127.0,0.3628]
[1725550969517,0.267288,56122.0,56121.0,0.3608]
[1725550969817,0.539288,56122.0,56121.0,0.3608]
[1725550970520,0.180192,56122.0,56121.0,0.3608]
[1725550971113,0.185192,56122.0,56121.0,0.3608]
[1725550971713,0.096096,56122.0,56121.0,0.3608]
[1725550972120,0.178194,56121.0,56120.0,0.00026719]
[1725550972423,0.179194,56121.0,56120.0,0.00026719]
[1725550972818,0.179194,56121.0,56120.0,0.36106719]
[1725550973420,0.190194,56121.0,56120.0,0.36206719]
[1725550973616,0.101097,56121.0,56120.0,0.36206719]
[1725550974014,0.101097,56121.0,56120.0,0.45116619]
[1725550974217,0.105097,56121.0,56120.0,0.45116619]
[1725550974426,0.105097,56121.0,56120.0,0.36206719]
[1725550976025,0.105097,56121.0,56120.0,0.00126719]
[1725550976911,0.017,56121.0,56120.0,0.09036619]
[1725550977121,0.017,56121.0,56120.0,0.62492619]
[1725550977327,0.017,56121.0,56120.0,0.09036619]
[1725550977532,1.418851,56121.0,56120.0,1.9e-07]
[1725550977735,0.178232,56109.0,56108.0,0.05310373]
[1725550978027,0.178232,56109.0,56099.0,0.2352]
[1725550978028,0.089126,56103.0,56099.0,0.2352]
[1725550978215,0.091131,56100.0,56099.0,0.2352]
[1725550978636,0.089131,56100.0,56099.0,0.24828568]
[1725550979424,0.089131,56100.0,56099.0,0.23927036]
[1725550980016,0.284,56103.0,56094.0,0.00026719]
[1725550980017,0.089138,56096.0,56094.0,0.00026719]
[1725550980213,0.721938,56095.0,56094.0,0.00441496]
[1725550980428,0.091138,56095.0,56094.0,0.00441496]
[1725550980928,0.091138,56095.0,56094.0,0.00026719]
[1725550980929,0.450276,56095.0,56094.0,0.00026719]
[1725550981721,0.464276,56095.0,56094.0,0.00126719]
[1725550981923,0.089151,56087.0,56080.0,0.3608]
[1725550982126,0.359161,56081.0,56075.0,0.36228]
[1725550982325,0.272,56076.0,56069.0,0.05310373]
[1725550982530,0.002,56070.0,56069.0,0.00412224]